Cogmind - Beta 16.1 @@@ ROGUE MODE // 2026.04.14 @ 01:54:12 Player: Maelyn Result: Destroyed by G-67 Veteran with Field Laser Performance ------------- Evolutions (6) 3000 Regions Visited (13) 2600 Robots Destroyed (152) 760 Value Destroyed (4821) 4821 Prototype IDs (38) 760 Alien Tech Used (0) 0 Bonus (418) 418 TOTAL SCORE: 12359 Bonus ------- High Alert Combat Kills 118 Aligned with FarCom 300 Cogmind --------- Core Integrity 0/1150 Matter 111/300 Energy 102/675 System Corruption 12% Temperature Danger (485) Movement Hovering (106) Ox1 Location -4/Factory Parts ------- > --- POWER (2) -------- Antimatter Reactor Improved Fusion Compressor > --- PROPULSION (5) --- Improved Gyrokinetic Inverter Improved Gyrokinetic Inverter Improved Gyrokinetic Inverter Improved Gyrokinetic Inverter > --- UTILITY (9) ------ Energy Well Enhanced Optical Array Advanced Melee Analysis Suite Transmission Jammer Improved Hacking Suite > --- WEAPON (3) ------- (None) > --- INVENTORY (5) ---- Focal Shield Peak State ------------ > --- POWER ------------ Antimatter Reactor Improved Fusion Compressor > --- PROPULSION ------- Gyrokinetic Inverter Improved Gyrokinetic Inverter Improved Gyrokinetic Inverter Improved Gyrokinetic Inverter Improved Gyrokinetic Inverter > --- UTILITY ---------- Experimental Heat Sink Energy Well Enhanced Optical Array 0b10 Decoder Chip [Looter] Advanced Melee Analysis Suite Transmission Jammer ECM Suite Hacking Suite Improved Hacking Suite > --- WEAPON ----------- Phase Gun Phase Gun Advanced Concussive RPG > --- INVENTORY -------- Focal Shield [Rating: 109] Favorites ----------- Power Enhanced Nuclear Core Engine Ion Engine Power Core Enhanced Nuclear Core Reactor Antimatter Reactor Propulsion Aluminum Leg Treads Improved Treads Leg Aluminum Leg Wheel Armored Huge Wheel Hover Unit Gravmag Array Flight Unit Xenon Bombardment Thruster Utility Hacking Suite Device Improved Heat Sink Storage Large Storage Unit Processor Enhanced Optical Array Hackware Hacking Suite Protection Improved Medium Armor Plating Weapon Precision Beam Rifle Energy Gun Precision Beam Rifle Energy Cannon Cooled Particle Cannon Ballistic Gun Assault Rifle Ballistic Cannon Improved Light Cannon Launcher Rocket Launcher Impact Weapon Impact Mace Slashing Weapon Chainsword Piercing Weapon Heavy Pick Special Melee Weapon Improved Datajack Build | -11 -10 -10 -10 -9 -8 -7 -6 -6 -6 -5 -5 -5 -4 ------- Run | Yrd Mat Min Exi Min Mat Fac Fac Was Fac Fac Upp Upp Fac Slots Evolved 12 | . . . . . 4 2 2 . . 2 . . 2 Power 1 | . . . . . . . . . . . . . 1 Propulsion 3 | . . . . . 2 1 . . . . . . . Utility 7 | . . . . . 2 1 2 . . 1 . . 1 Weapon 1 | . . . . . . . . . . 1 . . . Parts Attached 120 | 6 5 2 . 1 36 22 2 . 12 10 2 . 22 Power 17 | 1 . 1 . . 6 2 . . . 2 . . 5 Engine 4 | 1 . 1 . . 2 . . . . . . . . Core 12 | . . . . . 4 2 . . . 2 . . 4 Reactor 1 | . . . . . . . . . . . . . 1 Propulsion 39 | 3 2 . . 1 15 7 1 . 3 1 . . 6 Treads 8 | 2 2 . . 1 3 . . . . . . . . Leg 14 | 1 . . . . 12 1 . . . . . . . Wheel 3 | . . . . . . 3 . . . . . . . Hover 10 | . . . . . . . . . 3 1 . . 6 Flight 4 | . . . . . . 3 1 . . . . . . Utility 33 | 1 1 1 . . 7 7 1 . 6 4 . . 5 Device 11 | . . 1 . . 5 1 . . 1 . . . 3 Storage 4 | 1 1 . . . 1 . . . 1 . . . . Processor 3 | . . . . . . . . . 1 1 . . 1 Hackware 7 | . . . . . . 3 1 . 2 1 . . . Protection 8 | . . . . . 1 3 . . 1 2 . . 1 Artifact . | . . . . . . . . . . . . . . Weapon 31 | 1 2 . . . 8 6 . . 3 3 2 . 6 Energy Gun 11 | . . . . . 4 3 . . . . 1 . 3 Energy Cannon 6 | . . . . . 4 1 . . . . . . 1 Ballistic Gun 1 | 1 . . . . . . . . . . . . . Ballistic Cannon 2 | . 2 . . . . . . . . . . . . Launcher 4 | . . . . . . . . . 1 2 . . 1 Special Weapon . | . . . . . . . . . . . . . . Impact Weapon 2 | . . . . . . 2 . . . . . . . Slashing Weapon 2 | . . . . . . . . . 1 . 1 . . Piercing Weapon 1 | . . . . . . . . . 1 . . . . Special Melee Weapon 2 | . . . . . . . . . . 1 . . 1 Unidentified Prototypes 13 | . . . . . 6 1 . . 1 2 1 . 2 Parts Lost 50 | . . . . 1 18 10 . 2 4 1 . . 14 Power 7 | . . . . . 2 1 . . . 1 . . 3 Propulsion 17 | . . . . 1 10 2 . 1 1 . . . 2 Utility 16 | . . . . . 3 4 . 1 3 . . . 5 Weapon 10 | . . . . . 3 3 . . . . . . 4 Highest Loss Streak 8 | . . . . 1 5 6 . 2 1 1 . . 8 To Critical Strikes 1 | . . . . . . 1 . . . . . . . Average Backups 10 | 3 8 12 14 14 14 12 4 5 3 3 3 4 2 Power . | . 1 1 1 1 . . 1 1 . . . . . Propulsion 2 | 1 3 4 4 3 2 1 . 1 . 1 1 1 . Utility 3 | . 1 4 4 4 5 5 1 1 1 2 1 2 . Weapon 2 | 1 2 2 4 4 5 3 2 2 . . 1 1 . Tool/Special . | . . . . . . . . . . . . . . Unused Backups 26 | . 1 . 2 . 10 7 . . 1 3 . . 2 Power 5 | . . . . . 3 1 . . 1 . . . . Propulsion 1 | . . . . . . 1 . . . . . . . Utility 12 | . . . 2 . 1 4 . . . 3 . . 2 Weapon 6 | . 1 . . . 4 1 . . . . . . . Tool/Special 2 | . . . . . 2 . . . . . . . . Average Slot Usage (%) 86 | . 83 92 100 97 88 87 80 76 77 84 84 88 82 Engine 3 | . 14 14 14 14 2 . . . . . . . . Core 4 | . . . . . 5 7 6 6 6 5 5 5 6 Treads 7 | . 28 28 28 25 6 . . . . . . . . Leg 10 | . . . . . 22 18 . . . . . . . Wheel 1 | . . . . . . 6 6 6 . . . . . Hover 4 | . . . . . . . . . 13 17 17 17 16 Flight 1 | . . . . . . 4 20 18 5 . . . . Device 9 | . . 7 14 14 13 12 6 6 2 3 5 5 7 Storage 11 | . 14 14 14 14 17 11 . . 4 5 5 5 5 Processor 2 | . . . . . . . . . 1 10 11 11 14 Hackware 6 | . . . . . . 4 26 26 27 17 17 17 12 Protection 2 | . . . . . 1 6 6 4 2 4 5 5 4 Energy Gun 5 | . . . . . 9 12 6 4 . . . . 2 Energy Cannon 2 | . . . . . 8 . . . . . . . 3 Ballistic Cannon 5 | . 24 28 28 28 . . . . . . . . . Slashing Weapon 1 | . . . . . . . . . 2 5 6 11 2 Peak Build Rating 109 | 5 12 14 15 15 32 49 45 45 67 81 77 75 109 Average Rating 41 | 3 10 11 14 14 28 41 44 41 58 75 72 75 86 On Entrance 36 | . 5 11 14 15 15 32 40 45 40 67 77 75 75 Avg Prop Armor Cover (%) 7 | . . . . . . 8 11 13 4 . . . 2 Naked Turns . | . . . . . . . . . . . . . . Heaviest Build 49 | 12 38 36 36 36 49 46 15 15 33 37 32 26 46 Greatest Support 89 | 40 46 46 46 46 89 72 17 17 50 51 51 51 59 Greatest Overweight (x) 4 | 1 . . . 1 4 1 . . . . . . 2 Average Overweight (x) . | . . . . . . . . . . . . . . Largest Inventory Capacity 15 | 8 15 15 15 15 15 15 5 5 5 5 5 5 5 Average Capacity 11 | 6 11 15 15 15 15 13 5 5 5 5 5 5 5 Most Carried 15 | 5 11 15 15 15 15 15 5 5 5 5 5 5 5 Average Carried 10 | 3 8 12 14 14 14 12 4 4 4 4 4 5 3 Final Capacity 15 | 8 15 15 15 15 15 5 5 5 5 5 5 5 5 Final Carried 15 | 5 11 15 15 14 15 5 5 3 5 4 5 5 1 Class Distribution -------------------- 62% | Mutant 30% | Hacker-Mutant Dominant Class ---------------- Mutant | -10/Materials Mutant | -10/Mines Mutant | -10/Exiles Mutant | -9/Mines Mutant | -8/Materials Mutant | -7/Factory Mutant | -6/Factory Hacker-Mutant | -6/Waste Hacker-Mutant | -6/Factory Hacker-Mutant | -5/Factory Hacker-Mutant | -5/Upper Caves Hacker-Gladiator | -5/Upper Caves Hacker-Mutant | -4/Factory Resources | -11 -10 -10 -10 -9 -8 -7 -6 -6 -6 -5 -5 -5 -4 ----------- Run | Yrd Mat Min Exi Min Mat Fac Fac Was Fac Fac Upp Upp Fac Matter Collected 1911 | 144 250 151 . 86 379 394 . . 204 65 164 . 74 Remotely . | . . . . . . . . . . . . . . Salvage Created 6081 | 11 269 128 . 95 3044 1619 . . 343 211 . . 361 Parts 275 | . 11 10 . 6 123 72 . . 20 12 . . 21 Haulers Intercepted 16 | . 1 . . . 5 7 . . 2 1 . . . Recyclers Shooed . | . . . . . . . . . . . . . . Parts Field Recycled . | . . . . . . . . . . . . . . Retrieved Matter . | . . . . . . . . . . . . . . Parts Self-Destructed . | . . . . . . . . . . . . . . Prevented . | . . . . . . . . . . . . . . Parts Restored . | . . . . . . . . . . . . . . Kills | -11 -10 -10 -10 -9 -8 -7 -6 -6 -6 -5 -5 -5 -4 ------- Run | Yrd Mat Min Exi Min Mat Fac Fac Was Fac Fac Upp Upp Fac Combat Hostiles Destroyed 81 | . 4 5 . 3 45 19 . . 2 . . . 3 Melee 1 | . . . . . . . . . . . . . 1 Guns 26 | . . . . . 10 15 . . . . . . 1 Cannons 45 | . 3 5 . 3 31 2 . . . . . . 1 AOE 4 | . 1 . . . 1 . . . 2 . . . . Classes Destroyed 13 | 1 6 1 . . 4 1 . . . . . . . Worker 9 | . 1 . . . 3 2 . . . . . . 3 Builder 4 | . . . . . 2 1 . . . 1 . . . Tunneler 4 | 1 . 1 . . . . . . 1 . . . 1 Hauler 16 | . 1 . . . 5 7 . . 2 1 . . . Recycler 6 | . 1 . . . 4 . . . . . . . 1 Mechanic 2 | . . . . . 1 . . . 1 . . . . Operator 13 | . 2 . . . 4 3 . . 3 1 . . . Watcher 17 | . 3 . . . 5 5 . . . 3 . . 1 Swarmer 9 | . . 3 . . 5 1 . . . . . . . Grunt 40 | . 4 2 . 3 29 2 . . . . . . . Sentry 15 | . . . . . 9 5 . . 1 . . . . Hunter 5 | . . . . . 2 2 . . 1 . . . . Programmer 12 | . . . . . . 9 . . . . . . 3 Best Kill Streak 7 | 1 4 3 . 3 7 3 . . 2 2 . . 4 Combat Bots Only 7 | . 2 3 . 3 7 3 . . 1 . . . 2 Max Kills in Single Turn 2 | 1 2 1 . 1 2 1 . . 1 1 . . 2 Gunslinging . | . . . . . . . . . . . . . . Exploded 1 | . 1 . . . 1 . . . 1 . . . . Melee 1 | . . . . . . . . . . . . . 1 Uniques/NPCs Destroyed . | . . . . . . . . . . . . . . Combat | -11 -10 -10 -10 -9 -8 -7 -6 -6 -6 -5 -5 -5 -4 -------- Run | Yrd Mat Min Exi Min Mat Fac Fac Was Fac Fac Upp Upp Fac Hostile Shots Fired 933 | . 11 15 . 20 282 308 . 2 67 20 5 2 201 Missed 378 | . 4 5 . 8 95 133 . 1 38 8 1 1 84 Hits 555 | . 7 10 . 12 187 175 . 1 29 12 4 1 117 Melee 2 | . . . . . . . . 1 . . . . 1 Projectile 553 | . 7 10 . 12 187 175 . . 29 12 4 1 116 AOE 5 | . . . . . . 4 . . . 1 . . . Critical Strikes 22 | . 1 . . . 9 4 . . . . . . 8 Part Disruptions 1 | . . . . . . 1 . . . . . . . Damage Taken 9103 | . 187 92 . 151 2854 2213 . 54 392 309 73 16 2762 Core 1781 | . 11 16 . . 351 187 . . 41 23 . . 1152 Absorbed by Shields . | . . . . . . . . . . . . . . Redirected to Shielding 75 | . . . . . . . . . . . . . 75 Regen/Repaired (Parts) 124 | . . . . . . 38 . . . . . . 86 Core Remaining (%) 81 | 100 . . . 89 36 73 . . 95 . . 97 . Volleys Fired 397 | 1 24 8 . 7 178 134 . . 7 . . . 38 Largest 2 | 1 2 2 . 2 2 2 . . 1 . . . 2 Hottest 176 | 20 66 66 . 66 122 141 . . 33 . . . 176 Shots Fired 719 | 1 48 16 . 14 342 241 . . 7 . . . 50 Gun 352 | 1 . . . . 96 224 . . . . . . 31 Cannon 360 | . 48 16 . 14 246 17 . . . . . . 19 Launcher 7 | . . . . . . . . . 7 . . . . Special . | . . . . . . . . . . . . . . Kinetic 79 | 1 48 16 . 14 . . . . . . . . . Thermal 633 | . . . . . 342 241 . . . . . . 50 Explosive 7 | . . . . . . . . . 7 . . . . Electromagnetic . | . . . . . . . . . . . . . . Robot Hit Streak 28 | 1 6 5 . 5 28 18 . . 4 . . . 3 Robot Miss Streak 6 | . 3 2 . 4 4 4 . . 1 . . . 6 Penetration Max . | . . . . . . . . . . . . . . Secondary Targets 4 | . . . . . 3 1 . . . . . . . Max Gunslinging Chain 1 | . . . . . 1 1 . . . . . . . Shots Hit Robots 521 | 1 30 9 . 8 250 175 . . 11 16 . . 21 Core Hits 209 | 1 10 9 . 4 97 66 . . 11 2 . . 9 Critical Kills 3 | . . . . . 3 . . . . . . . . Critical Parts Destroyed 1 | . . . . . . . . . 1 . . . . Critical Strikes 31 | . 1 1 . . 10 18 . . 1 . . . . Burn 25 | . . . . . 7 18 . . . . . . . Meltdown 3 | . . . . . 3 . . . . . . . . Blast 2 | . 1 1 . . . . . . . . . . . Smash 1 | . . . . . . . . . 1 . . . . Melee Attacks 47 | . . . . . . 1 . . 17 22 . . 7 Impact 8 | . . . . . . 1 . . 7 . . . . Slashing 36 | . . . . . . . . . 10 19 . . 7 Piercing . | . . . . . . . . . . . . . . Sneak Attacks 14 | . . . . . . . . . 6 4 . . 4 Combat Hostiles . | . . . . . . . . . . . . . . Follow-up Attacks . | . . . . . . . . . . . . . . Damage Inflicted 13911 | 15 810 232 . 160 6482 3405 . . 747 738 . . 1322 Guns 4836 | 15 . . . . 1292 3075 . . . . . . 454 Cannons 6369 | . 629 207 . 160 4800 273 . . . . . . 300 Explosions 904 | . 181 . . . 338 . . . 203 . . . 182 Melee 1614 | . . . . . . . . . 512 738 . . 364 Ramming 188 | . . 25 . . 52 57 . . 32 . . . 22 Kinetic 1011 | 15 629 207 . 160 . . . . . . . . . Thermal 10557 | . 181 . . . 6092 3348 . . . . . . 936 Explosive 541 | . . . . . 338 . . . 203 . . . . Electromagnetic . | . . . . . . . . . . . . . . Impact 129 | . . . . . . . . . 129 . . . . Slashing 1485 | . . . . . . . . . 383 738 . . 364 Piercing . | . . . . . . . . . . . . . . Highest Corruption 12 | . . . . . . 7 . . 6 . . . 12 Average Corruption 4 | . . . . . . 5 . . 6 . . . 2 Corruption Purged . | . . . . . . . . . . . . . . Corruption Blocked . | . . . . . . . . . . . . . . Effects 84 | . . . . . . 60 . . 16 . . . 8 Message Errors 19 | . . . . . . 12 . . 4 . . . 3 Matter Fused 23 | . . . . . . 16 . . 6 . . . 1 Heat Flow Errors 12 | . . . . . . 8 . . 3 . . . 1 Energy Discharges 12 | . . . . . . 11 . . 1 . . . . Parts Rejected 2 | . . . . . . 1 . . . . . . 1 Parts Fused 1 | . . . . . . 1 . . . . . . . Data Loss (minor) 10 | . . . . . . 7 . . 2 . . . 1 Data Loss (major) 2 | . . . . . . 2 . . . . . . . Alerts 1 | . . . . . . . . . . . . . 1 Weapon Failures 2 | . . . . . . 2 . . . . . . . Overload Shots . | . . . . . . . . . . . . . . Overflow Damage 787 | . 70 . . . 235 . . . 229 154 . . 99 Projectiles 212 | . 43 . . . 133 . . . . . . . 36 Explosions 143 | . 27 . . . 102 . . . . . . . 14 Melee 432 | . . . . . . . . . 229 154 . . 49 Knockbacks 16 | . 13 1 . . . . . . 1 . . . 1 Impact 2 | . . . . . . . . . 1 . . . 1 Kinetic 13 | . 13 . . . . . . . . . . . . Secondary 1 | . . 1 . . . . . . . . . . . Self-Inflicted Damage 386 | . 98 . . . 219 26 . . 32 . . . 11 Shots 3 | . 1 . . . 2 . . . . . . . . Rammed 13 | . 1 5 . . 3 3 . . . . . . 1 Targets Rammed 21 | . 1 5 . . 10 4 . . . . . . 1 Kicked 6 | . . . . . 5 1 . . . . . . . Crushed 2 | . . . . . 2 . . . . . . . . Highest Temperature 715 | . 66 39 . 8 69 411 . . 177 . 457 . 715 Average Temperature 112 | . 12 17 . 4 20 62 . . 70 . 217 . 207 Received Heat Transfer 1924 | . 66 15 . 84 1233 255 . . 36 39 36 . 160 Effects 27 | . . . . . . 1 . . . . 3 . 23 Shutdowns 8 | . . . . . . 1 . . . . 1 . 6 Energy Bleed 4 | . . . . . . . . . . . . . 4 Interference 4 | . . . . . . . . . . . . . 4 Matter Decay 2 | . . . . . . . . . . . . . 2 Short Circuit 2 | . . . . . . . . . . . . . 2 Damage (minor) 2 | . . . . . . . . . . . 1 . 1 Damage (major) 3 | . . . . . . . . . . . 1 . 2 Damage (core) 2 | . . . . . . . . . . . . . 2 Siege Activations . | . . . . . . . . . . . . . . Martial Activations . | . . . . . . . . . . . . . . Shielding Activations . | . . . . . . . . . . . . . . Robots Disrupted . | . . . . . . . . . . . . . . Combat Hostiles . | . . . . . . . . . . . . . . Robots Corrupted 1 | . . . . . . . . . 1 . . . . Combat Hostiles . | . . . . . . . . . . . . . . Parts Fried 2 | . . . . . . . . . 2 . . . . Impact Corruptions 3 | . . . . . . . . . 3 . . . . Robots Melted 7 | . . . . . 4 3 . . . . . . . Combat Hostiles 5 | . . . . . 3 2 . . . . . . . Parts Melted 49 | . . . . . 18 31 . . . . . . . Heat Transferred 18823 | . 100 . . . 9916 8152 . . . . . . 655 Parts Sabotaged 3 | . . . . . . . . . . . . . 3 Parts Stolen . | . . . . . . . . . . . . . . Parts Stripped . | . . . . . . . . . . . . . . Power Chain Reactions 1 | . . . . . . . . . . . . . 1 Alert | -11 -10 -10 -10 -9 -8 -7 -6 -6 -6 -5 -5 -5 -4 ------- Run | Yrd Mat Min Exi Min Mat Fac Fac Was Fac Fac Upp Upp Fac Maximum Alert Level 2 | . . . . . 2 1 . . . . . . . Low Security (%) 73 | 100 100 100 . 100 14 89 100 100 100 100 . . 100 Level 1 11 | . . . . . 30 10 . . . . . . . Level 2 15 | . . . . . 55 . . . . . . . . Level 3 . | . . . . . . . . . . . . . . Level 4 . | . . . . . . . . . . . . . . Level 5 . | . . . . . . . . . . . . . . High Security . | . . . . . . . . . . . . . . Max Security . | . . . . . . . . . . . . . . Peak Influence 643 | 5 138 70 . 51 643 286 139 45 77 7 . . 183 Initial 286 | . 3 . . . . 286 139 45 . 7 . . . Average 154 | . 55 7 . 24 390 112 134 23 8 1 . . 65 Influence Increases 3441 | 5 249 125 . 71 1452 800 . . 206 42 . . 491 Destroy 0b10 Robot/C 1620 | . 80 100 . 60 900 380 . . 40 . . . 60 Destroy 0b10 Robot/NC 355 | 5 40 5 . . 120 90 . . 35 30 . . 30 Destroy Leader 562 | . 38 20 . 10 250 190 . . 24 8 . . 22 Successful Hack 72 | . . . . . . 32 . . . . . . 40 Disable Machine 285 | . 45 . . . 90 15 . . 60 . . . 75 Anti-Garrison Action 150 | . . . . . . . . . . . . . 150 Destroy Structure 277 | . 31 . . 1 92 3 . . 32 4 . . 114 Partial Spotted 15 | . . . . . . . . . 15 . . . . Lose Combat Pursuer 105 | . 15 . . . . 90 . . . . . . . Influence Decreases 3441 | . 254 125 . 71 822 1145 156 129 189 52 7 . 491 Entered New Map 590 | . 2 . . . . 344 146 84 . 10 4 . . Time Decay 2417 | . 252 125 . 61 642 701 10 30 169 42 3 . 382 Lost Part 434 | . . . . 10 180 100 . 15 20 . . . 109 Squads Dispatched 45 | . 2 . . . 10 14 . . 8 5 . . 6 Investigation 7 | . . . . . 3 1 . . 1 . . . 2 Extermination 16 | . . . . . . 9 . . 3 2 . . 2 Reinforcement 16 | . 2 . . . 5 2 . . 4 3 . . . Assault 2 | . . . . . . . . . . . . . 2 Garrison 4 | . . . . . 2 2 . . . . . . . Intercept . | . . . . . . . . . . . . . . Searches Triggered . | . . . . . . . . . . . . . . Construction Impeded . | . . . . . . . . . . . . . . Haulers Reinforced 1 | . . . . . . . . . . 1 . . . Active Scanning Responses . | . . . . . . . . . . . . . . Cargo Convoy Interrupts . | . . . . . . . . . . . . . . Stealth | -11 -10 -10 -10 -9 -8 -7 -6 -6 -6 -5 -5 -5 -4 --------- Run | Yrd Mat Min Exi Min Mat Fac Fac Was Fac Fac Upp Upp Fac Distress Signals 11 | . 2 . . . 3 2 . . . 4 . . . Communications Jammed 1 | . . . . . . . . . . . . . 1 Distress Signals 1 | . . . . . . . . . . . . . 1 Times Spotted 239 | . 14 5 . 3 63 47 . 5 10 36 6 3 47 Peak Tracking Total 15 | . 4 2 . 3 7 4 . 5 3 15 5 3 8 Tactical Retreats 24 | . 1 . . . . 2 . . . 8 3 1 9 ECM-based Alert Blocks 67 | . . . . . . . . . . 20 10 3 34 Traps | -11 -10 -10 -10 -9 -8 -7 -6 -6 -6 -5 -5 -5 -4 ------- Run | Yrd Mat Min Exi Min Mat Fac Fac Was Fac Fac Upp Upp Fac Traps Triggered 15 | . . . . . 3 5 1 . 2 1 . . 3 Indirectly . | . . . . . . . . . . . . . . Trap Hack Attempts . | . . . . . . . . . . . . . . Triggered . | . . . . . . . . . . . . . . Disarmed . | . . . . . . . . . . . . . . Reprogrammed . | . . . . . . . . . . . . . . Reused . | . . . . . . . . . . . . . . Traps Extracted . | . . . . . . . . . . . . . . Installed . | . . . . . . . . . . . . . . Triggered . | . . . . . . . . . . . . . . Machines | -11 -10 -10 -10 -9 -8 -7 -6 -6 -6 -5 -5 -5 -4 ---------- Run | Yrd Mat Min Exi Min Mat Fac Fac Was Fac Fac Upp Upp Fac Machines Disabled 21 | . 4 . . . 6 1 . . 4 . . . 6 Max in Single Turn 4 | . 1 . . . 3 1 . . 2 . . . 4 Garrison Access 6 | . . . . . 1 2 2 . . . . . 1 Machines Repaired . | . . . . . . . . . . . . . . Machines Dismantled . | . . . . . . . . . . . . . . Machines Sabotaged . | . . . . . . . . . . . . . . Overloaded Fab Kills . | . . . . . . . . . . . . . . Hacking | -11 -10 -10 -10 -9 -8 -7 -6 -6 -6 -5 -5 -5 -4 --------- Run | Yrd Mat Min Exi Min Mat Fac Fac Was Fac Fac Upp Upp Fac Machines Accessed 25 | . . . 1 . 4 7 2 . 4 . . . 7 Terminals 11 | . . . . . 1 4 . . 1 . . . 5 Fabricators 1 | . . . . . . . . . 1 . . . . Repair Stations 2 | . . . . . . 1 . . . . . . 1 Recycling Units 4 | . . . . . 2 . . . 2 . . . . Scanalyzers . | . . . . . . . . . . . . . . Garrison Access 6 | . . . . . 1 2 2 . . . . . 1 Total Hacks 54 | . . . 1 . 7 15 4 . 11 . . . 16 Successful 34 | . . . 1 . 3 10 2 . 8 . . . 10 Failed 20 | . . . . . 4 5 2 . 3 . . . 6 Catastrophic . | . . . . . . . . . . . . . . Database Lockouts . | . . . . . . . . . . . . . . Manual 13 | . . . 1 . . 5 . . 1 . . . 6 Terminals 28 | . . . . . 2 10 . . 5 . . . 11 Fabricators 3 | . . . . . . . . . 3 . . . . Repair Stations 5 | . . . . . . 2 . . . . . . 3 Recycling Units 5 | . . . . . 2 . . . 3 . . . . Scanalyzers . | . . . . . . . . . . . . . . Garrison Access 12 | . . . . . 3 3 4 . . . . . 2 Terminal Hacks 17 | . . . 1 . . 5 . . 5 . . . 6 Record 1 | . . . . . . 1 . . . . . . . Part Schematic 1 | . . . . . . . . . 1 . . . . Prototype ID Bank 1 | . . . . . . 1 . . . . . . . Level Access Points 3 | . . . . . . 1 . . 1 . . . 1 Emergency Access Points 1 | . . . . . . . . . . . . . 1 Alert Level 3 | . . . . . . . . . . . . . 3 Investigation Status 2 | . . . . . . . . . 2 . . . . Hauler Manifests 2 | . . . . . . 1 . . 1 . . . . Registered Components 1 | . . . . . . 1 . . . . . . . Zone Layout 1 | . . . . . . . . . . . . . 1 Proto ID Catalog 1 | . . . 1 . . . . . . . . . . Fabricator Hacks 1 | . . . . . . . . . 1 . . . . Load Schematic 1 | . . . . . . . . . 1 . . . . Repair Station Hacks 4 | . . . . . . 2 . . . . . . 2 Scan Component 2 | . . . . . . 1 . . . . . . 1 Repair 2 | . . . . . . 1 . . . . . . 1 Recycling Unit Hacks 4 | . . . . . 2 . . . 2 . . . . Report Inventory 4 | . . . . . 2 . . . 2 . . . . Scanalyzer . | . . . . . . . . . . . . . . Garrison Access Hacks 5 | . . . . . 1 2 2 . . . . . . Seal Access 5 | . . . . . 1 2 2 . . . . . . Unauthorized Hacks 3 | . . . . . . 1 . . . . . . 2 Terminals 3 | . . . . . . 1 . . . . . . 2 Botnet 3 | . . . . . . 1 . . . . . . 2 Fabricators . | . . . . . . . . . . . . . . Repair Stations . | . . . . . . . . . . . . . . Recycling Units . | . . . . . . . . . . . . . . Scanalyzers . | . . . . . . . . . . . . . . Garrison Access . | . . . . . . . . . . . . . . Data Cores Recovered 2 | . 1 . . . . 1 . . . . . . . Used . | . . . . . . . . . . . . . . Hacking Detections 14 | . . . . . 3 3 1 . 2 . . . 5 Full Trace Events 3 | . . . . . . . . . 1 . . . 2 Feedback Events 1 | . . . . . . . . . 1 . . . . Hackware Fried 1 | . . . . . . . . . 1 . . . . Feedback Blocked . | . . . . . . . . . . . . . . Robot Schematics Acquired . | . . . . . . . . . . . . . . Robots Built . | . . . . . . . . . . . . . . Authchips . | . . . . . . . . . . . . . . Time . | . . . . . . . . . . . . . . Total Robot Build Rating . | . . . . . . . . . . . . . . Part Schematics Acquired 1 | . . . . . . . . . 1 . . . . Parts Built . | . . . . . . . . . . . . . . Authchips . | . . . . . . . . . . . . . . Time . | . . . . . . . . . . . . . . Total Part Build Rating . | . . . . . . . . . . . . . . Part Studies Acquired . | . . . . . . . . . . . . . . Parts Repaired 2 | . . . . . . 1 . . . . . . 1 Time 63 | . . . . . . 44 . . . . . . 19 Parts Recycled . | . . . . . . . . . . . . . . Recycled Matter . | . . . . . . . . . . . . . . Retrieved Matter . | . . . . . . . . . . . . . . Retrieved Components . | . . . . . . . . . . . . . . Parts Scanalyzed . | . . . . . . . . . . . . . . Part Schematics Acquired . | . . . . . . . . . . . . . . Parts Damaged . | . . . . . . . . . . . . . . Bothacking | -11 -10 -10 -10 -9 -8 -7 -6 -6 -6 -5 -5 -5 -4 ------------ Run | Yrd Mat Min Exi Min Mat Fac Fac Was Fac Fac Upp Upp Fac Used RIF Installer . | . . . . . . . . . . . . . . Robots Hacked 1 | . . . . . . . . . . 1 . . . Non-combat 1 | . . . . . . . . . . 1 . . . Combat . | . . . . . . . . . . . . . . Robot Hacks Applied 1 | . . . . . . . . . . 1 . . . parse_system 1 | . . . . . . . . . . 1 . . . Relay Couplers Released . | . . . . . . . . . . . . . . Fabnet Peak Effective % . | . . . . . . . . . . . . . . Robots Rewired . | . . . . . . . . . . . . . . Allies Hacked . | . . . . . . . . . . . . . . Hacks Repelled . | . . . . . . . . . . . . . . Allies | -11 -10 -10 -10 -9 -8 -7 -6 -6 -6 -5 -5 -5 -4 -------- Run | Yrd Mat Min Exi Min Mat Fac Fac Was Fac Fac Upp Upp Fac Total Allies . | . . . . . . . . . . . . . . Largest Group . | . . . . . . . . . . . . . . Highest-Rated Group . | . . . . . . . . . . . . . . Highest-Rated Ally . | . . . . . . . . . . . . . . Total Orders . | . . . . . . . . . . . . . . Ally Attacks . | . . . . . . . . . . . . . . Total Damage . | . . . . . . . . . . . . . . Kills . | . . . . . . . . . . . . . . Allies Corrupted . | . . . . . . . . . . . . . . Allies Melted . | . . . . . . . . . . . . . . Intel | -11 -10 -10 -10 -9 -8 -7 -6 -6 -6 -5 -5 -5 -4 ------- Run | Yrd Mat Min Exi Min Mat Fac Fac Was Fac Fac Upp Upp Fac Active Infowar (turns) 2449 | . . . . . . 1 . . 243 517 329 122 1237 Optics 2448 | . . . . . . . . . 243 517 329 122 1237 Decoding 1121 | . . . . . . . . . . . . . 1121 Jamming 346 | . . . . . . . . . . . . . 346 ECM 1927 | . . . . . . 1 . . . 399 329 122 1076 Robot Analysis Total . | . . . . . . . . . . . . . . Derelict Logs Recovered 2 | . . 1 . 1 . . . . . . . . . Drone Launches . | . . . . . . . . . . . . . . Drone Recoveries . | . . . . . . . . . . . . . . Decoded 0b10 Intel 62 | . . . . . . . . . . . . . 62 Items 62 | . . . . . . . . . . . . . 62 Exploration | -11 -10 -10 -10 -9 -8 -7 -6 -6 -6 -5 -5 -5 -4 ------------- Run | Yrd Mat Min Exi Min Mat Fac Fac Was Fac Fac Upp Upp Fac Turns Passed 12200 | 75 698 1046 391 140 3226 3015 36 90 1236 517 329 122 1279 Spaces Moved 11268 | 47 376 630 243 70 1595 3025 81 207 1836 845 624 235 1454 Core 17 | 17 . . . . . . . . . . . . . Treads 1623 | 28 376 630 243 70 276 . . . . . . . . Legs 2232 | 2 . . . . 1319 911 . . . . . . . Wheels 913 | . . . . . . 913 . . . . . . . Hover 4865 | . . . . . . . . . 1707 845 624 235 1454 Flight 1618 | . . . . . . 1201 81 207 129 . . . . Fastest Speed 30 | 50 160 160 160 160 120 40 40 40 30 52 52 52 52 Average Speed 89 | 121 160 160 160 168 156 83 41 42 54 52 52 52 56 Slowest Speed 400 | 190 160 160 160 240 400 125 42 44 60 52 52 52 150 Overloaded Moves . | . . . . . . . . . . . . . . Propulsion Burnouts . | . . . . . . . . . . . . . . Robots Hopped 5 | . . . . . . 3 . 2 . . . . . Potential Cave-ins . | . . . . . . . . . . . . . . Cave-ins Triggered . | . . . . . . . . . . . . . . Time Travels 1 | . . . . . 1 . . . . . . . . Exploration Rate (%) 48 | 4 67 98 61 18 92 60 3 86 30 17 87 29 26 Regions Visited 13 Branch Regions 5 Pre-discovered Areas 1 | . . 1 . . . . . . . . . . . Known Exits Taken 2 | . . . . . . 1 . . 1 . . . . Unknown Exits Taken 9 | 1 1 1 1 1 1 . . . . 1 1 1 . Scrap Searched 5 | . . 1 . . . . . . . . 4 . . Spaces Dug 12 | . . . . . . 1 . . 5 1 . . 5 Terrain Destroyed 216 | . 28 . . 1 90 1 . . 36 1 . . 59 Melee 9 | . . . . . . 1 . . 5 1 . . 2 Projectile 62 | . 2 . . 1 48 . . . . . . . 11 AOE 145 | . 26 . . . 42 . . . 31 . . . 46 Terrain Rammed 1 | . . . . . . . . . 1 . . . . Walls Destroyed 1 | . . . . . . . . . 1 . . . . Machines Disabled . | . . . . . . . . . . . . . . Actions | -11 -10 -10 -10 -9 -8 -7 -6 -6 -6 -5 -5 -5 -4 --------- Run | Yrd Mat Min Exi Min Mat Fac Fac Was Fac Fac Upp Upp Fac Total 12631 | 62 424 649 246 78 1977 3253 83 206 2043 895 628 234 1853 Wait 561 | . 5 . . . 99 20 . . 130 2 . . 305 Move 11247 | 46 375 629 242 69 1594 3018 81 203 1835 844 623 234 1454 Hop 4 | . . . . . . 3 . 1 . . . . . Pick Up 83 | 8 8 4 2 . 27 15 . . 9 5 1 . 4 Fast Attach 64 | 2 2 1 . . 18 11 . . 7 5 1 . 17 Attach 42 | 3 . . . 1 10 12 1 2 4 3 . . 6 Detach 14 | . 1 . . . 1 4 . . 2 . 1 . 5 Swap 41 | 2 3 1 . 1 13 7 1 . 4 4 1 . 4 Drop 89 | . 5 1 2 . 27 22 . . 10 10 1 . 11 Fire 397 | 1 24 8 . 7 178 134 . . 7 . . . 38 Melee 47 | . . . . . . 1 . . 17 22 . . 7 Ram 5 | . . . . . . 3 . . 1 . . . 1 Kick 6 | . . . . . 5 1 . . . . . . . Crush 11 | . 1 5 . . 5 . . . . . . . . Escape Stasis 20 | . . . . . . 2 . . 17 . . . 1 Rewire . | . . . . . . . . . . . . . . Trap . | . . . . . . . . . . . . . . Miscellaneous . | . . . . . . . . . . . . . . Route ------- -11/Scrapyard -10/Materials (discovered 3 exits: [*Mat x2] / [*Min]) -10/Mines (discovered 4 exits: [*Mat x2] / *Exi / [*Sub]) -10/Exiles -9/Mines -8/Materials (discovered 3 exits: *Fac x2 / [*Sto]) -7/Factory (discovered 6 exits: *Fac x4 / [*Low x2]) -6/Factory -6/Waste -6/Factory (discovered 6 exits: *Fac x4 / [*Low x2]) -5/Factory -5/Upper Caves -5/Upper Caves -4/Factory (discovered 5 exits: *Res x4 / [*Upp]) History --------- Turn | Location | Event 8 | -11/Scrapyard | Discovered new exit (range 16) 76 | -11/Scrapyard | Entered Materials 316 | -10/Materials | Build established: Mutant 348 | -10/Materials | Discovered new exit (range 10) 399 | -10/Materials | Discovered new exit (range 13) 580 | -10/Materials | Discovered new exit (range 10) 774 | -10/Materials | Entered Mines 1000 | -10/Mines | Found a Scrap Suit stashed away for nefarious purposes 1056 | -10/Mines | Learned Materials security intel 1128 | -10/Mines | Discovered new exit (range 10) 1212 | -10/Mines | Learned location of Storage (-8) 1287 | -10/Mines | Discovered new exit (range 5) 1387 | -10/Mines | Received a Rocket Launcher from a helpful Derelict 1618 | -10/Mines | Joined a pair of Derelicts in attacking an 0b10 outpost 1624 | -10/Mines | Discovered new exit (range 12) 1814 | -10/Mines | Deemed a non-threat by the Exiles lab entrance 1814 | -10/Mines | Discovered new exit (range 5) 1820 | -10/Mines | Entered Exiles 1857 | -10/Exiles | Met 8R-AWN 1888 | -10/Exiles | Met EX-HEX 1937 | -10/Exiles | Met EX-BIN 1960 | -10/Exiles | Aligned with FarCom system 1961 | -10/Exiles | Given EX-Vault access code 2000 | -10/Exiles | Opened EX-Vault 2015 | -10/Exiles | Found Chronowheel 2046 | -10/Exiles | Warned to stay clear of 0b10 Research branches 2067 | -10/Exiles | Exiles lab attacked by MAIN.C 2190 | -10/Exiles | Discovered new exit (range 14) 2211 | -10/Exiles | Left Exiles lab with Chronowheel 2211 | -10/Exiles | Entered Mines 2233 | -9/Mines | Met a Derelict bent on vengeance 2317 | -9/Mines | Learned Materials non-interactive machine intel 2343 | -9/Mines | Discovered new exit (range 7) 2351 | -9/Mines | Entered Materials 2351 | -8/Materials | Evolved 4 slots: Propulsion x2, Utility x2 2353 | -8/Materials | Loaded intel: 36 non-interactive machine locations 2825 | -8/Materials | Activated Chronowheel 2825 | -8/Materials | Spacetime reconverged on an earlier point 2858 | -8/Materials | Destroyed 7 combat bots 3643 | -8/Materials | Garrison activated, responded to threat 3740 | -8/Materials | Lost 4 parts (3n1u) 3786 | -8/Materials | Core integrity fell below 50% 3820 | -8/Materials | Lost 5 parts (1p2n2w) 4158 | -8/Materials | Discovered new exit (range 12) 4363 | -8/Materials | Discovered new exit (range 12) 5278 | -8/Materials | Discovered new exit (range 8) 5577 | -8/Materials | Entered Factory 5577 | -7/Factory | Evolved 2 slots: Propulsion x1, Utility x1 6322 | -7/Factory | Discovered new exit (range 10) 6740 | -7/Factory | Discovered new exit (range 16) 7084 | -7/Factory | Discovered new exit (range 6) 7649 | -7/Factory | Garrison activated, responded to threat 7778 | -7/Factory | Garrison activated, responded to threat 7835 | -7/Factory | Lost 6 parts (1p1n2u2w) 8152 | -7/Factory | Discovered new exit (range 15) 8170 | -7/Factory | Repaired Mic. Nuclear Core? 8198 | -7/Factory | Discovered new exit (range 16) 8343 | -7/Factory | Build established: Hacker-Mutant 8506 | -7/Factory | Identified exit to Factory 8592 | -7/Factory | Entered another Factory area 8592 | -6/Factory | Evolved 2 slots: Utility x2 8628 | -6/Factory | Sucked down chute 8628 | -6/Factory | Entered Waste 8639 | -6/Waste | Spotted C-40 Crusher 8640 | -6/Waste | Spotted C-40 Crusher 8646 | -6/Waste | Spotted C-40 Crusher 8647 | -6/Waste | Spotted C-40 Crusher 8648 | -6/Waste | Discovered new exit (range 15) 8683 | -6/Waste | Spotted C-40 Crusher 8690 | -6/Waste | Spotted C-40 Crusher 8692 | -6/Waste | Crushed by Compactor (1 part destroyed, 1 dropped) 8718 | -6/Waste | Entered Factory 8735 | -6/Factory | Discovered new exit (range 7) 9024 | -6/Factory | Identified exit to Factory 9563 | -6/Factory | Discovered new exit (range 8) 9609 | -6/Factory | Hacking Suite fried by hacking feedback 9954 | -6/Factory | Entered another Factory area 9954 | -5/Factory | Evolved 2 slots: Utility x1, Weapon x1 9971 | -5/Factory | Found Prototype Launcher 9971 | -5/Factory | Identified Mni. Smartbomb Launcher 10058 | -5/Factory | Found Prototype Launcher 10058 | -5/Factory | Identified Scatter Rocket Array 10137 | -5/Factory | Discovered new exit (range 21) 10471 | -5/Factory | Entered Upper Caves 10612 | -5/Upper Caves | Encountered a Warlord checkpoint 10712 | -5/Upper Caves | Entered a destroyed Warlord outpost 10791 | -5/Upper Caves | Discovered new exit (range 19) 10800 | -5/Upper Caves | Entered another Upper Caves area 10919 | -5/Upper Caves | Discovered new exit (range 5) 10922 | -5/Upper Caves | Entered Factory 10922 | -4/Factory | Evolved 2 slots: Power x1, Utility x1 10973 | -4/Factory | Identified exit to Research 11665 | -4/Factory | Discovered new exit (range 22) 11829 | -4/Factory | Lost 3 parts (2p1w) 12118 | -4/Factory | Repaired Imp. Utility Shielding? 12151 | -4/Factory | Core integrity fell below 50% 12164 | -4/Factory | Core integrity fell below 20% 12185 | -4/Factory | System corruption reached 10% 12201 | -4/Factory | Destroyed by G-67 Veteran with Field Laser Last Messages --------------- 12173_ Imp. Gyrokinetic Inverter broken. 12173_ Overheating: Short circuit. 12174_ Adv. Concussive RPG destroyed. 12176_ Overheating: Exp. Heat Sink damaged (-38). 12177_ Power failure, Antimatter Reactor shutdown. 12179_ Overheating: Matter decay (-9). 12180_ Phase Gun destroyed. 12180_ Exp. Heat Sink destroyed. 12184_ Gyrokinetic Inverter destroyed. 12187_ Hacking Suite destroyed. 12188_ Destroyed Imp. Heat Sink. 12191_ Overheating: System interference. 12191_ Enh. Optical Array temporarily disabled. 12192_ Power failure, Antimatter Reactor shutdown. 12193_ Overheating: System interference. 12193_ Phase Gun temporarily disabled. 12195_ S2QJ5NNNMZBY1RO14|Y BZC IQ 12199_ ECM Suite destroyed. 12200_ Critical hit (Burn: +50). 12200_ Phase Gun destroyed. Map ----- +----------------------------------------------------+ | ??????????????? ?# | | ??????????????? ?###+###+##### | | ???#############+##### | | ???# | | ???# #################### | | ???# ## ! # #### | | ???# ## = =* # #??? | | ???# ## ! + #??? | | ???# ## #???#??? | | ???# ## #??????? | | ???# ## #??????? | | ???# ## #??????? | | ???# ##+#################??????? | | ???# ## #?????###########???#??? | | ???# ## #?????# #?? #??? | | ???# ## #?????# #? #??? | | ####+## #?????# # #??? | | # # #?????# ! + +??? | | # # #?????# #??????? | | # """ # ####### #??????? | | # """ + / #??????? | | # """ # #### #??????? | | # # ##############??????? | | #| # # #????????????? | | ####### # g """#????????????? | | ????# @ # """#????????????? | | ????# gg + !R"#????????????? | | ????# *g#### """#????????????? | | ????# !!#??# #????????????? | | ????# p #??########????????????? | | ????# #??????????????????????? | | ????# #??????????????????????? | | ????# #??????????????????????? | | ????# ####???????????????????? | | ????# #?????????????????*?? | | ????#### #???????????????????? | | ???????# #???????????????????? | | ???????# #???????????????????? | | ######## #????????????=??????? | | # """ # ###### #????????????? | | #! """ # #????????????? | | # """ + #????????????? | | # # ^ #????????????? | | # [ # """ #????????????? | | # # """ #????????????? | | #####+## """ #????????????? | | ????# ## #????????????? | | ????# #????????????? | | ????########## #????????????? | | ?????????????? #????????????? | +----------------------------------------------------+ Best States ------------- Heat Dissipation 70 Energy Generation 49 Energy Capacity 675 Matter Stores 300 Matter Capacity 300 Sight Range 22 Terrain Scan Density 10 ECM Strength 1 Jamming Range 12 Armor Coverage 600 Utility Shielding 66 Evasion (%) 62 Melee Accuracy 8 Recoil Reduction 4 Energy Filtering 30 Offensive Hacking 52 Item Schematics ----------------- Linear Gravjet | -6/Factory | Hacked Robot Schematics ------------------ None Fabricated ------------ Nothing Repaired ---------- Mic. Nuclear Core | 24% | -7/Factory Imp. Utility Shielding | 14% | -4/Factory Studied --------- None Alien Tech Used ----------------- None Achievements -------------- Decoder Ring Respectable Loadout Spacetime Is Relative Challenges ------------ None Game ------ Seed MappingGhostFacilitator Manual? 0 Play Time 02:58:08 Cumulative 45.8 hours Start 2026.04.12 @ 15:14:58 End 2026.04.14 @ 01:54:12 Sessions 15 Manual Loads 0 Difficulty Rogue Special Mode None Game No. 102 Rogue 102 Adventurer 0 Explorer 0 Win Type - Total 0 Types 0/0/0/0/0/0/0/0/0/0 Lore% 15 Gallery% 28 Achievement% 18 Wizard Run 0 Options --------- Layout 2 ASCII 1 Keyboard 1 Movement Vi Keybinds 0 Fullscreen 0 Font 16/T_Terminus Map View 64x51 Zoom Use 0% Tactical HUD 1 Map Filters NONE Filters LOW_CONTRAST(13,24,33) Steam 1 RUN: 5f6b3adc-8d47-4b63-841a-9487361b18a8